fUST/lending_fUST_20260528
["ID","MTS","AMOUNT","RATE_DAILY","PERIOD"]
[423183688,1779910255000,-568.22,0.0001315,2]
[423183690,1779910255000,-672.48,0.0001315,2]
[423183694,1779910255000,-1517.97,0.0001315,2]
[423183692,1779910255000,-2006.93,0.0001315,2]
[423183706,1779910255000,-9305.13,0.0001315,2]
[423183708,1779910255000,-500.0,0.0001315,2]
[423183686,1779910255000,-500.0,0.0001315,2]
[423183696,1779910255000,-1170.47,0.0001315,2]
[423183698,1779910255000,-1156.29,0.0001315,2]
[423183701,1779910255000,-180.04,0.0001315,2]
[423183705,1779910255000,-501.53,0.0001315,2]
[423183703,1779910255000,-540.46,0.0001315,2]
[423183710,1779910255000,-500.0,0.0001315,2]
[423183719,1779910255000,-236.25114121,0.00013336,2]
[423183772,1779910255000,-583.62,0.00013424,2]
[423183766,1779910255000,-620.9,0.00013424,2]
[423183780,1779910255000,-500.0,0.00013663,2]
[423183844,1779910255000,-151.0,0.00013699,2]
[423183850,1779910255000,-3603.884027,0.00013699,2]
[423183846,1779910255000,-3603.884027,0.00013699,2]
[423183848,1779910255000,-151.0,0.00013699,2]
[423183853,1779910255000,-168.075552,0.00013699,2]
[423183855,1779910255000,-3603.884027,0.00013699,2]
[423183857,1779910255000,-3603.884027,0.00013699,2]
[423183860,1779910255000,-3603.884027,0.00013699,2]
[423183872,1779910255000,-159.391412,0.00013699,2]
[423183870,1779910255000,-159.391412,0.00013699,2]
[423183875,1779910255000,-159.391412,0.00013699,2]
[423183862,1779910255000,-3603.884027,0.00013699,2]
[423183877,1779910255000,-159.391412,0.00013699,2]
[423183879,1779910255000,-159.391412,0.00013699,2]
[423183864,1779910255000,-3603.884027,0.00013699,2]
[423183868,1779910255000,-159.391412,0.00013699,2]
[423183881,1779910255000,-159.391412,0.00013699,2]
[423183883,1779910255000,-176.432343,0.00013699,2]
[423183888,1779910255000,-176.432343,0.00013699,2]
[423183885,1779910255000,-176.432343,0.00013699,2]
[423183892,1779910255000,-176.432343,0.00013699,2]
[423183890,1779910255000,-176.432343,0.00013699,2]
[423183894,1779910255000,-176.432343,0.00013699,2]
[423183896,1779910255000,-176.432343,0.00013699,2]
[423183898,1779910255000,-176.432343,0.00013699,2]
[423183900,1779910255000,-692.617139,0.00013699,2]
[423183776,1779910255000,-1000.0,0.00013616,2]
[423183838,1779910255000,-1000.0,0.00013699,2]
[423183840,1779910255000,-397.048923,0.00013699,2]
[423183866,1779910255000,-159.391412,0.00013699,2]
[423183836,1779910255000,-183.15858,0.00013699,2]
[423183774,1779910255000,-365.39307901,0.00013558,7]
[423183842,1779910255000,-3603.884027,0.00013699,2]
[423183782,1779910255000,-504.43752427,0.00013698,2]
[423183788,1779910255000,-1125.3,0.00013698,2]
[423183786,1779910255000,-432.51601163,0.00013698,2]
[423183790,1779910255000,-624.65,0.00013698,2]
[423183784,1779910255000,-500.0,0.00013698,2]
[423183797,1779910255000,-536.5,0.00013698,2]
[423183795,1779910255000,-764.39,0.00013698,2]
[423183799,1779910255000,-1576.23,0.00013698,2]
[423183801,1779910255000,-658.23,0.00013698,2]
[423183804,1779910255000,-632.03,0.00013698,2]
[423183806,1779910255000,-568.22,0.00013698,2]
[423183819,1779910255000,-540.46,0.00013698,2]
[423183793,1779910255000,-1321.14,0.00013698,2]
[423183823,1779910255000,-9305.13,0.00013698,2]
[423183834,1779910255000,-180.03780794,0.00013699,2]
[423183815,1779910255000,-1170.47,0.00013698,2]
[423183832,1779910255000,-583.62,0.00013698,2]
[423183829,1779910255000,-1727.35,0.00013698,2]
[423183810,1779910255000,-2006.93,0.00013698,2]
[423183831,1779910255000,-711.93,0.00013698,2]
[423183817,1779910255000,-1156.29,0.00013698,2]
[423183808,1779910255000,-672.48,0.00013698,2]
[423183828,1779910255000,-246.72,0.00013698,2]
[423183826,1779910255000,-500.0,0.00013698,2]
[423183822,1779910255000,-501.53,0.00013698,2]
[423183812,1779910255000,-1517.97,0.00013698,2]
[423183982,1779910256000,-341.62018101,0.00013811,2]
[423183977,1779910256000,-176.432343,0.00013699,2]
[423183978,1779910256000,-176.432343,0.00013699,2]
[423183975,1779910256000,-176.432343,0.00013699,2]
[423183971,1779910256000,-159.391412,0.00013699,2]
[423183973,1779910256000,-176.432343,0.00013699,2]
[423183969,1779910256000,-159.391412,0.00013699,2]
[423183965,1779910256000,-159.391412,0.00013699,2]
[423183960,1779910256000,-3603.884027,0.00013699,2]
[423183963,1779910256000,-3603.884027,0.00013699,2]
[423183962,1779910256000,-3603.884027,0.00013699,2]
[423183956,1779910256000,-3603.884027,0.00013699,2]
[423183967,1779910256000,-159.391412,0.00013699,2]
[423183980,1779910256000,-1038.65215957,0.0001372,2]
[423184005,1779910256000,-658.23,0.00013972,2]
[423183984,1779910256000,-548.08961851,0.00013848,7]
[423183995,1779910256000,-624.65,0.00013972,2]
[423183986,1779910256000,-385.57577681,0.00013853,2]
[423183992,1779910256000,-154.0,0.00013967,2]
[423183990,1779910256000,-4247.0,0.00013967,2]
[423183994,1779910256000,-1125.3,0.00013972,2]
[423183997,1779910256000,-1321.14,0.00013972,2]
[423183999,1779910256000,-764.39,0.00013972,2]
[423184001,1779910256000,-536.5,0.00013972,2]
[423184003,1779910256000,-1576.23,0.00013972,2]
[423184007,1779910256000,-632.03,0.00013972,2]
[423184009,1779910256000,-568.22,0.00013972,2]
[423184024,1779910256000,-9305.13,0.00013972,2]
[423183958,1779910256000,-151.0,0.00013699,2]
[423183988,1779910256000,-156.0,0.00013967,2]
[423183954,1779910256000,-182.0,0.00013699,3]
[423183906,1779910256000,-692.617139,0.00013699,2]
[423183950,1779910256000,-325.00002799,0.00013699,2]
[423183902,1779910256000,-692.617139,0.00013699,2]
[423183904,1779910256000,-692.617139,0.00013699,2]
[423183908,1779910256000,-692.617139,0.00013699,2]
[423184022,1779910256000,-501.53,0.00013972,2]
[423183910,1779910256000,-692.617139,0.00013699,2]
[423183920,1779910256000,-692.617139,0.00013699,2]
[423183918,1779910256000,-692.617139,0.00013699,2]
[423183914,1779910256000,-692.617139,0.00013699,2]
[423183916,1779910256000,-692.617139,0.00013699,2]
[423183925,1779910256000,-151.0,0.00013699,2]
[423183912,1779910256000,-692.617139,0.00013699,2]
[423183923,1779910256000,-167.909322,0.00013699,2]
[423183921,1779910256000,-692.617139,0.00013699,2]
[423183927,1779910256000,-151.0,0.00013699,2]
[423183930,1779910256000,-151.0,0.00013699,2]
[423183929,1779910256000,-151.0,0.00013699,2]
[423183931,1779910256000,-151.0,0.00013699,2]
[423183941,1779910256000,-168.896383,0.00013699,2]
[423183936,1779910256000,-151.0,0.00013699,2]
[423183939,1779910256000,-151.0,0.00013699,2]
[423183937,1779910256000,-151.0,0.00013699,2]
[423183938,1779910256000,-244.185723,0.00013699,2]
[423183940,1779910256000,-151.0,0.00013699,2]
[423183952,1779910256000,-487.50004198,0.00013699,2]
[423183932,1779910256000,-151.0,0.00013699,2]
[423183946,1779910256000,-524.53141851,0.00013699,7]
[423183934,1779910256000,-151.0,0.00013699,2]
[423183944,1779910256000,-349.68761234,0.00013699,7]
[423183948,1779910256000,-162.50001399,0.00013699,2]
[423183943,1779910256000,-174.84380617,0.00013699,7]
[423183933,1779910256000,-151.0,0.00013699,2]
[423183935,1779910256000,-151.0,0.00013699,2]
[423184011,1779910256000,-672.48,0.00013972,2]
[423184051,1779910256000,-151.2,0.000141,2]
[423184018,1779910256000,-1156.29,0.00013972,2]
[423184095,1779910256000,-540.46,0.00014246,2]
[423184097,1779910256000,-501.53,0.00014246,2]
[423184088,1779910256000,-151.0,0.00014246,2]
[423184083,1779910256000,-2006.93,0.00014246,2]
[423184081,1779910256000,-672.48,0.00014246,2]
[423184086,1779910256000,-151.0,0.00014246,2]
[423184101,1779910256000,-500.0,0.00014246,2]
[423184103,1779910256000,-1727.35,0.00014246,2]
[423184099,1779910256000,-9305.13,0.00014246,2]
[423184106,1779910256000,-583.62,0.00014246,2]
[423184114,1779910256000,-874.21903086,0.00014264,7]
[423184108,1779910256000,-167.0,0.0001425,2]
[423184105,1779910256000,-711.93,0.00014246,2]
[423184116,1779910256000,-812.50006997,0.00014264,2]
[423184084,1779910256000,-1517.97,0.00014246,2]
[423184013,1779910256000,-2006.93,0.00013972,2]
[423184125,1779910256000,-228.20565533,0.0001432,14]
[423184123,1779910256000,-228.47970854,0.0001432,14]
[423184110,1779910256000,-171.45948956,0.0001425,2]
[423184112,1779910256000,-406.96664526,0.0001426,14]
[423184121,1779910256000,-517.5023786,0.00014309,2]
[423184127,1779910256000,-456.7502812,0.00014329,2]
[423184129,1779910256000,-1059.08496195,0.00014333,4]
[423184131,1779910256000,-151.04,0.000144,2]
[423184132,1779910256000,-151.07,0.000145,2]
[423184142,1779910256000,-692.617139,0.0001452,2]
[423184136,1779910256000,-624.75217915,0.0001452,2]
[423184134,1779910256000,-1125.52,0.0001452,2]
[423184138,1779910256000,-692.617139,0.0001452,2]
[423184140,1779910256000,-1321.16,0.0001452,2]
[423184119,1779910256000,-151.07,0.000143,2]
[423184094,1779910256000,-1156.29,0.00014246,2]
[423184118,1779910256000,-406.96664526,0.000143,14]
[423184090,1779910256000,-151.0,0.00014246,2]
[423184092,1779910256000,-1170.47,0.00014246,2]
[423184017,1779910256000,-1170.47,0.00013972,2]
[423184020,1779910256000,-540.46,0.00013972,2]
[423184015,1779910256000,-1517.97,0.00013972,2]
[423184026,1779910256000,-500.0,0.00013972,2]
[423184042,1779910256000,-406.96664526,0.00014021,7]
[423184039,1779910256000,-1000.0,0.00014,14]
[423184043,1779910256000,-613.6194885,0.00014032,2]
[423184028,1779910256000,-1727.35,0.00013972,2]
[423184032,1779910256000,-583.62,0.00013972,2]
[423184049,1779910256000,-200.0,0.000141,2]
[423184030,1779910256000,-711.93,0.00013972,2]
[423184034,1779910256000,-699.37522468,0.00013973,7]
[423184035,1779910256000,-650.00005597,0.00013973,2]
[423184037,1779910256000,-5366.04432645,0.00014,14]
[423184046,1779910256000,-406.96664526,0.0001406,7]
[423184054,1779910256000,-406.96664526,0.0001414,14]
[423184079,1779910256000,-568.22,0.00014246,2]
[423184053,1779910256000,-406.96664526,0.000141,14]
[423184077,1779910256000,-632.03,0.00014246,2]
[423184057,1779910256000,-151.1,0.000142,2]
[423184063,1779910256000,-1125.3,0.00014246,2]
[423184059,1779910256000,-151.04,0.000142,2]
[423184073,1779910256000,-1576.23,0.00014246,2]
[423184075,1779910256000,-658.23,0.00014246,2]
[423184071,1779910256000,-536.5,0.00014246,2]
[423184055,1779910256000,-406.96664526,0.0001418,14]
[423184069,1779910256000,-764.39,0.00014246,2]
[423184061,1779910256000,-406.96664526,0.0001422,14]
[423184065,1779910256000,-624.65,0.00014246,2]
[423184067,1779910256000,-1321.14,0.00014246,2]
[423184179,1779910257000,-712.01,0.0001452,2]
[423184187,1779910257000,-600.0,0.0001455,2]
[423184183,1779910257000,-372.50213094,0.00014531,2]
[423184181,1779910257000,-583.72924376,0.0001452,2]
[423184185,1779910257000,-600.0,0.0001455,2]
[423184195,1779910257000,-443.0,0.00014583,2]
[423184200,1779910257000,-517.58425487,0.000146,14]
[423184193,1779910257000,-170.0,0.00014556,2]
[423184199,1779910257000,-185.0,0.00014583,2]
[423184197,1779910257000,-742.0,0.00014583,2]
[423184189,1779910257000,-600.0,0.0001455,2]
[423184203,1779910257000,-151.04,0.000146,2]
[423184177,1779910257000,-1727.47,0.0001452,2]
[423184191,1779910257000,-800.0,0.00014555,2]
[423184175,1779910257000,-422.44,0.0001452,2]
[423184152,1779910257000,-1576.3,0.0001452,2]
[423184173,1779910257000,-9305.33116158,0.0001452,2]
[423184150,1779910257000,-536.5,0.0001452,2]
[423184154,1779910257000,-658.23,0.0001452,2]
[423184144,1779910257000,-692.617139,0.0001452,2]
[423184146,1779910257000,-692.617139,0.0001452,2]
[423184148,1779910257000,-764.45923767,0.0001452,2]
[423184156,1779910257000,-632.15,0.0001452,2]
[423184165,1779910257000,-1170.67,0.0001452,2]
[423184167,1779910257000,-1156.45,0.0001452,2]
[423184158,1779910257000,-568.22,0.0001452,2]
[423184160,1779910257000,-672.49,0.0001452,2]
[423184171,1779910257000,-501.61,0.0001452,2]
[423184162,1779910257000,-2006.93,0.0001452,2]
[423184163,1779910257000,-1518.09318318,0.0001452,2]
[423184204,1779910257000,-151.2,0.000146,2]
[423184169,1779910257000,-540.54,0.0001452,2]
[423184214,1779910257000,-975.00008396,0.00014702,2]
[423184246,1779910257000,-160.0,0.00014999,2]
[423184206,1779910257000,-800.0,0.00014629,2]
[423184239,1779910257000,-10018.96529825,0.000149,2]
[423184247,1779910257000,-8013.51520354,0.00015,2]
[423184249,1779910257000,-79645.62806887,0.00015,15]
[423184258,1779910257000,-69074.53783519,0.00015,15]
[423184256,1779910257000,-2987.63384,0.00015,15]
[423184260,1779910257000,-7451.48467456,0.00015,15]
[423184240,1779910257000,-165.68579738,0.00014967,2]
[423184275,1779910257000,-1412.0,0.00014583,2]
[423184265,1779910257000,-500.0,8.219e-05,2]
[423184272,1779910257000,-500.0,9.041e-05,2]
[423184269,1779910257000,-470.34607141,8.493e-05,2]
[423184267,1779910257000,-29.65392859,8.493e-05,2]
[423184273,1779910257000,-1414.0,0.00011583,2]
[423184270,1779910257000,-500.0,8.767e-05,2]
[423184276,1779910257000,-15428.80448248,0.00015,15]
[423184245,1779910257000,-791.0,0.00014978,2]
[423184216,1779910257000,-600.0,0.00014729,2]
[423184242,1779910257000,-154.0,0.00014967,2]
[423184243,1779910257000,-1000.0,0.00014978,2]
[423184211,1779910257000,-150.0,0.00014676,2]
[423184212,1779910257000,-1049.06283703,0.00014702,7]
[423184221,1779910257000,-151.07,0.000148,2]
[423184218,1779910257000,-151.04,0.000148,2]
[423184208,1779910257000,-183.15858,0.00014658,2]
[423184223,1779910257000,-3465.79,0.000148,5]
[423184224,1779910257000,-800.0,0.00014852,2]
[423184226,1779910257000,-1342.51825709,0.00014898,5]
[423184231,1779910257000,-151.1,0.000149,2]
[423184233,1779910257000,-460.65961298,0.000149,2]
[423184237,1779910257000,-460.65961296,0.000149,2]
[423184235,1779910257000,-460.65961296,0.000149,2]
[423184241,1779910257000,-4247.0,0.00014967,2]
[423184229,1779910257000,-602.9864611,0.000149,2]
[423187291,1779910298000,-1505.34953417,7.808e-05,2]
[423187322,1779911432000,-500.0,7.884e-05,2]
[423187325,1779911432000,-500.0,7.884e-05,2]
[423187323,1779911432000,-186.5338772,7.884e-05,2]
[423187321,1779911432000,-500.0,7.884e-05,2]
[423187320,1779911432000,-323.51872607,7.884e-05,2]
[423187318,1779911432000,-5000.0,7.478e-05,2]
[423187319,1779911432000,-205.32153924,7.554e-05,2]
[423187324,1779911432000,-500.0,7.884e-05,2]
[423187326,1779911432000,-500.0,7.884e-05,2]
[423187331,1779911432000,-500.0,7.884e-05,2]
[423187328,1779911432000,-500.0,7.884e-05,2]
[423187335,1779911432000,-538.86042667,7.884e-05,2]
[423187329,1779911432000,-1134.13423703,7.884e-05,2]
[423187330,1779911432000,-1134.13423703,7.884e-05,2]
[423187332,1779911432000,-500.0,7.884e-05,2]
[423187336,1779911432000,-1134.13423703,7.884e-05,2]
[423187337,1779911432000,-205.04018297,7.884e-05,2]
[423187333,1779911432000,-1134.13423703,7.884e-05,2]
[423187334,1779911432000,-1134.13423703,7.884e-05,2]
[423187327,1779911432000,-500.0,7.884e-05,2]
[423187371,1779911438000,-2696.0,7.885e-05,2]
[423187380,1779911440000,-23744.86465437,7.885e-05,2]
[423187385,1779911440000,-975.0,7.885e-05,2]
[423187383,1779911440000,-12370.82557647,7.885e-05,2]
[423187412,1779911441000,-558.0,7.885e-05,2]
[423187410,1779911441000,-384.033501,7.885e-05,2]
[423187403,1779911441000,-710.66587433,7.885e-05,2]
[423187423,1779911444000,-15810.53395227,7.885e-05,2]
[423187424,1779911444000,-4615.09542832,7.885e-05,2]
[423187427,1779911444000,-1324.17607391,7.885e-05,2]
[423187425,1779911444000,-1909.34647797,7.885e-05,2]
[423187428,1779911444000,-6926.84326751,7.885e-05,2]
[423187426,1779911444000,-695.7,7.885e-05,2]
[423187430,1779911444000,-620.51122382,7.885e-05,2]
[423187431,1779911444000,-2125.38560048,7.885e-05,2]
[423187433,1779911444000,-11167.58831437,7.885e-05,2]
[423187432,1779911444000,-1829.17678905,7.885e-05,2]
[423187429,1779911444000,-6035.67688669,7.885e-05,2]
[423187436,1779911444000,-3713.26041875,7.885e-05,2]
[423187487,1779911447000,-500.0,8.219e-05,2]
[423187478,1779911447000,-500.0,8.219e-05,2]
[423187474,1779911447000,-500.0,8.219e-05,2]
[423187479,1779911447000,-500.0,8.219e-05,2]
[423187480,1779911447000,-500.0,8.219e-05,2]
[423187476,1779911447000,-500.0,8.219e-05,2]
[423187475,1779911447000,-500.0,8.219e-05,2]
[423187483,1779911447000,-500.0,8.219e-05,2]
[423187493,1779911447000,-536.89178431,8.219e-05,2]
[423187485,1779911447000,-500.0,8.219e-05,2]
[423187495,1779911447000,-500.0,8.219e-05,2]
[423187494,1779911447000,-500.0,8.219e-05,2]
[423187482,1779911447000,-500.0,8.219e-05,2]
[423187486,1779911447000,-500.0,8.219e-05,2]
[423187489,1779911447000,-500.0,8.219e-05,2]
[423187492,1779911447000,-500.0,8.219e-05,2]
[423187490,1779911447000,-500.0,8.219e-05,2]
[423187491,1779911447000,-619.89,8.219e-05,2]
[423187488,1779911447000,-500.0,8.219e-05,2]
[423187484,1779911447000,-500.0,8.219e-05,2]
[423187470,1779911447000,-300.0,8.044e-05,2]
[423187481,1779911447000,-500.0,8.219e-05,2]
[423187473,1779911447000,-600.0,8.204e-05,2]
[423187453,1779911447000,-3227.303843,7.885e-05,2]
[423187452,1779911447000,-585.22942909,7.885e-05,2]
[423187454,1779911447000,-174249.6924773,7.885e-05,2]
[423187456,1779911447000,-249.70123847,8e-05,2]
[423187455,1779911447000,-233.35522938,7.985e-05,2]
[423187458,1779911447000,-300.0,8.044e-05,2]
[423187457,1779911447000,-300.0,8.044e-05,2]
[423187461,1779911447000,-300.0,8.044e-05,2]
[423187460,1779911447000,-300.0,8.044e-05,2]
[423187477,1779911447000,-500.0,8.219e-05,2]
[423187459,1779911447000,-300.0,8.044e-05,2]
[423187466,1779911447000,-300.0,8.044e-05,2]
[423187462,1779911447000,-300.0,8.044e-05,2]
[423187465,1779911447000,-300.0,8.044e-05,2]
[423187467,1779911447000,-300.0,8.044e-05,2]
[423187463,1779911447000,-300.0,8.044e-05,2]
[423187468,1779911447000,-300.0,8.044e-05,2]
[423187469,1779911447000,-300.0,8.044e-05,2]
[423187471,1779911447000,-300.0,8.044e-05,2]
[423187472,1779911447000,-152.0,8.138e-05,2]
[423187464,1779911447000,-300.0,8.044e-05,2]
[423187496,1779911447000,-500.0,8.219e-05,2]
[423187506,1779911447000,-500.0,8.219e-05,2]
[423187499,1779911447000,-500.0,8.219e-05,2]
[423187525,1779911447000,-500.0,8.219e-05,2]
[423187526,1779911447000,-266.02562041,8.219e-05,2]
[423187524,1779911447000,-500.0,8.219e-05,2]
[423187535,1779911447000,-500.0,8.493e-05,2]
[423187530,1779911447000,-500.0,8.493e-05,2]
[423187529,1779911447000,-261.40364311,8.493e-05,2]
[423187531,1779911447000,-500.0,8.493e-05,2]
[423187528,1779911447000,-3284.1268794,8.428e-05,2]
[423187533,1779911447000,-628.02,8.493e-05,2]
[423187527,1779911447000,-500.0,8.219e-05,2]
[423187532,1779911447000,-167.09,8.493e-05,2]
[423187534,1779911447000,-500.0,8.493e-05,2]
[423187537,1779911447000,-500.0,8.493e-05,2]
[423187498,1779911447000,-500.0,8.219e-05,2]
[423187540,1779911447000,-347.44845994,8.493e-05,2]
[423187536,1779911447000,-500.0,8.493e-05,2]
[423187541,1779911447000,-500.0,8.493e-05,2]
[423187542,1779911447000,-500.0,8.493e-05,2]
[423187539,1779911447000,-500.0,8.493e-05,2]
[423187523,1779911447000,-500.0,8.219e-05,2]
[423187520,1779911447000,-500.0,8.219e-05,2]
[423187538,1779911447000,-367.84821196,8.493e-05,2]
[423187515,1779911447000,-500.0,8.219e-05,2]
[423187519,1779911447000,-500.0,8.219e-05,2]
[423187500,1779911447000,-642.73434847,8.219e-05,2]
[423187507,1779911447000,-500.0,8.219e-05,2]
[423187503,1779911447000,-500.0,8.219e-05,2]
[423187501,1779911447000,-500.0,8.219e-05,2]
[423187502,1779911447000,-500.0,8.219e-05,2]
[423187505,1779911447000,-500.0,8.219e-05,2]
[423187497,1779911447000,-500.0,8.219e-05,2]
[423187508,1779911447000,-500.0,8.219e-05,2]
[423187504,1779911447000,-500.0,8.219e-05,2]
[423187517,1779911447000,-500.0,8.219e-05,2]
[423187511,1779911447000,-500.0,8.219e-05,2]
[423187522,1779911447000,-500.0,8.219e-05,2]
[423187521,1779911447000,-500.0,8.219e-05,2]
[423187510,1779911447000,-500.0,8.219e-05,2]
[423187514,1779911447000,-500.0,8.219e-05,2]
[423187513,1779911447000,-500.0,8.219e-05,2]
[423187512,1779911447000,-500.0,8.219e-05,2]
[423187509,1779911447000,-500.0,8.219e-05,2]
[423187518,1779911447000,-500.0,8.219e-05,2]
[423187516,1779911447000,-500.0,8.219e-05,2]
[423187552,1779911448000,-500.0,8.493e-05,2]
[423187554,1779911448000,-209.8944253,8.493e-05,2]
[423187553,1779911448000,-500.0,8.493e-05,2]
[423187550,1779911448000,-500.0,8.493e-05,2]
[423187546,1779911448000,-500.0,8.493e-05,2]
[423187544,1779911448000,-500.0,8.493e-05,2]
[423187543,1779911448000,-500.0,8.493e-05,2]
[423187555,1779911448000,-500.0,8.493e-05,2]
[423187547,1779911448000,-500.0,8.493e-05,2]
[423187549,1779911448000,-500.0,8.493e-05,2]
[423187548,1779911448000,-500.0,8.493e-05,2]
[423187545,1779911448000,-500.0,8.493e-05,2]
[423187557,1779911448000,-500.0,8.493e-05,2]
[423187560,1779911448000,-500.0,8.493e-05,2]
[423187558,1779911448000,-500.0,8.493e-05,2]
[423187569,1779911448000,-442.46127373,8.767e-05,2]
[423187568,1779911448000,-57.53872627,8.767e-05,2]
[423187563,1779911448000,-644.18,8.493e-05,2]
[423187556,1779911448000,-500.0,8.493e-05,2]
[423187570,1779911448000,-357.19026645,8.767e-05,2]
[423187565,1779911448000,-500.0,8.767e-05,2]
[423187564,1779911448000,-495.56,8.767e-05,2]
[423187561,1779911448000,-428.49053664,8.493e-05,2]
[423187562,1779911448000,-500.0,8.493e-05,2]
[423187551,1779911448000,-322.93586196,8.493e-05,2]
[423187559,1779911448000,-500.0,8.493e-05,2]
[423187567,1779911448000,-500.0,8.767e-05,2]
[423187566,1779911448000,-500.0,8.767e-05,2]
[423187579,1779911756000,162.12731,3.411e-05,2]
[423187582,1779911855000,8062.01066469,0.00018695,120]
[423187583,1779911884000,19433.83422572,0.00018,120]
[423187587,1779911953000,215299.04001806,0.00018,120]
[423187591,1779912092000,-4398.34296589,7.583e-05,2]
[423187639,1779912632000,-3793.99142329,6.645e-05,2]
[423187638,1779912632000,-835.91665979,6.579e-05,2]
[423187656,1779912638000,-1093.72471636,7.682e-05,2]
[423187654,1779912638000,-1093.72471636,7.682e-05,2]
[423187655,1779912638000,-1093.72471636,7.682e-05,2]
[423187653,1779912638000,-1093.72471636,7.682e-05,2]
[423187652,1779912638000,-727.3916125,6.849e-05,2]
[423187651,1779912638000,-213.55031702,6.746e-05,2]
[423187650,1779912638000,-1206.00857671,6.645e-05,2]
[423187698,1779912639000,-218.4885836,8e-05,2]
[423187700,1779912639000,-300.0,8.041e-05,2]
[423187697,1779912639000,-2714.14431904,7.99e-05,2]
[423187693,1779912639000,-672.2460799,7.926e-05,2]
[423187694,1779912639000,-631.4707114,7.935e-05,2]
[423187695,1779912639000,-166.9453351,7.935e-05,2]
[423187692,1779912639000,-2620.70037654,7.89e-05,2]
[423187696,1779912639000,-213.54986934,7.959e-05,2]
[423187699,1779912639000,-300.0,8.041e-05,2]
[423187688,1779912639000,-37000.98533471,7.685e-05,2]
[423187691,1779912639000,-2423.04434653,7.79e-05,2]
[423187701,1779912639000,-300.0,8.041e-05,2]
[423187704,1779912639000,-300.0,8.041e-05,2]
[423187703,1779912639000,-300.0,8.041e-05,2]
[423187713,1779912639000,-300.0,8.041e-05,2]
[423187686,1779912639000,-1093.72471636,7.682e-05,2]
[423187705,1779912639000,-300.0,8.041e-05,2]
[423187706,1779912639000,-300.0,8.041e-05,2]
[423187712,1779912639000,-300.0,8.041e-05,2]
[423187707,1779912639000,-300.0,8.041e-05,2]
[423187709,1779912639000,-300.0,8.041e-05,2]
[423187710,1779912639000,-300.0,8.041e-05,2]
[423187708,1779912639000,-300.0,8.041e-05,2]
[423187711,1779912639000,-300.0,8.041e-05,2]
[423187718,1779912639000,-500.40261173,8.219e-05,2]
[423187715,1779912639000,-2818.35640667,8.09e-05,2]
[423187702,1779912639000,-300.0,8.041e-05,2]
[423187687,1779912639000,-300.0,7.682e-05,2]
[423187680,1779912639000,-500.0,7.682e-05,2]
[423187682,1779912639000,-500.0,7.682e-05,2]
[423187665,1779912639000,-1093.72471636,7.682e-05,2]
[423187657,1779912639000,-1093.72471636,7.682e-05,2]
[423187664,1779912639000,-1093.72471636,7.682e-05,2]
[423187663,1779912639000,-1093.72471636,7.682e-05,2]
[423187660,1779912639000,-1093.72471636,7.682e-05,2]
[423187659,1779912639000,-1093.72471636,7.682e-05,2]
[423187658,1779912639000,-1093.72471636,7.682e-05,2]
[423187662,1779912639000,-1093.72471636,7.682e-05,2]
[423187661,1779912639000,-1093.72471636,7.682e-05,2]
[423187666,1779912639000,-500.0,7.682e-05,2]
[423187668,1779912639000,-500.0,7.682e-05,2]
[423187667,1779912639000,-170.98449185,7.682e-05,2]
[423187670,1779912639000,-1093.72471636,7.682e-05,2]
[423187689,1779912639000,-1404.79402846,7.69e-05,2]
[423187669,1779912639000,-500.0,7.682e-05,2]
[423187672,1779912639000,-500.0,7.682e-05,2]
[423187674,1779912639000,-500.0,7.682e-05,2]
[423187677,1779912639000,-500.0,7.682e-05,2]
[423187676,1779912639000,-500.0,7.682e-05,2]
[423187673,1779912639000,-500.0,7.682e-05,2]